bitfinex/quotes_BTCUSD_20250616
["timestamp","ask_amount","ask_price","bid_price","bid_amount"]
[1750057421209,0.76365736,106830.0,106820.0,0.52165318]
[1750057421791,0.95087068,106830.0,106820.0,0.51229182]
[1750057422000,0.55529504,106830.0,106820.0,0.51229182]
[1750057422216,0.94151037,106830.0,106820.0,0.51229182]
[1750057422433,0.94151037,106830.0,106820.0,0.51329182]
[1750057422645,0.94151037,106830.0,106820.0,0.52265318]
[1750057422906,0.92278931,106830.0,106820.0,0.00209776]
[1750057423120,0.94482865,106830.0,106820.0,0.00209776]
[1750057423328,0.55861332,106830.0,106820.0,0.00209776]
[1750057423542,0.94482865,106830.0,106820.0,0.00209776]
[1750057423999,0.94482865,106830.0,106820.0,0.0114593]
[1750057424914,0.94482865,106830.0,106820.0,0.00209776]
[1750057425134,0.55861332,106830.0,106820.0,0.00209776]
[1750057425351,0.94482865,106830.0,106820.0,0.00209776]
[1750057426046,0.94482865,106830.0,106820.0,0.0114593]
[1750057426286,0.94482865,106830.0,106820.0,0.02082075]
[1750057426494,0.94482865,106830.0,106820.0,0.0114593]
[1750057426718,0.94482865,106830.0,106820.0,0.02082075]
[1750057427384,0.91342865,106830.0,106820.0,0.03018211]
[1750057427608,0.91342865,106830.0,106820.0,0.02082075]
[1750057428056,0.34935996,106830.0,106820.0,0.30254053]
[1750057428279,0.76365605,106830.0,106820.0,0.29317961]
[1750057428514,0.76365605,106830.0,106820.0,0.24881287]
[1750057428954,0.76365605,106830.0,106820.0,0.23311296]
[1750057429179,0.76365605,106830.0,106820.0,0.21741287]
[1750057429399,0.76365605,106830.0,106820.0,0.21741296]
[1750057429613,0.76365605,106830.0,106820.0,0.22677423]
[1750057430275,0.77301671,106830.0,106820.0,0.22677423]
[1750057430531,0.76365675,106830.0,106820.0,0.21741296]
[1750057430761,0.95087007,106830.0,106820.0,0.2080516]
[1750057430988,0.94151002,106830.0,106820.0,0.00209776]
[1750057431226,0.94151002,106830.0,106820.0,0.0114593]
[1750057431470,0.9321498,106830.0,106820.0,0.00209776]
[1750057433096,0.92278931,106830.0,106820.0,0.00209776]
[1750057434450,0.53657398,106830.0,106820.0,0.00209776]
[1750057434677,0.92278931,106830.0,106820.0,0.00209776]
[1750057435349,0.93878931,106830.0,106820.0,0.00209776]
[1750057435826,0.95448931,106830.0,106820.0,0.00209776]
[1750057436480,0.56827398,106830.0,106820.0,0.00209776]
[1750057436704,0.95448931,106830.0,106820.0,0.00109776]
[1750057437384,0.56827398,106830.0,106820.0,0.00109776]
[1750057437602,0.95448931,106830.0,106820.0,0.00109776]
[1750057438480,0.01872352,106810.0,106800.0,0.55297531]
[1750057438711,0.0280855,106810.0,106800.0,0.63985448]
[1750057438927,0.42366289,106810.0,106800.0,0.63985448]
[1750057439377,0.43302504,106810.0,106800.0,0.63985448]
[1750057439597,0.43302582,106810.0,106800.0,0.54593047]
[1750057439814,0.43302574,106810.0,106800.0,0.55093047]
[1750057440050,0.42366341,106810.0,106800.0,0.56029323]
[1750057440272,0.43302582,106810.0,106800.0,0.55093082]
[1750057440495,0.42366341,106810.0,106800.0,0.56029367]
[1750057440726,0.43302565,106810.0,106800.0,0.56965643]
[1750057441200,0.43302565,106810.0,106800.0,0.56029367]
[1750057441445,1.41467183,106810.0,106800.0,0.005]
[1750057441943,1.43711095,106810.0,106800.0,0.005]
[1750057442174,0.53663864,106800.0,106780.0,0.72787456]
[1750057442398,0.41430652,106790.0,106780.0,0.83348093]
[1750057442877,0.00936347,106790.0,106780.0,0.93899458]
[1750057443107,0.40494253,106790.0,106780.0,0.93899458]
[1750057443349,0.0187272,106790.0,106780.0,0.66911458]
[1750057443802,0.93220738,106800.0,106790.0,0.0314]
[1750057444243,0.92284444,106800.0,106790.0,0.0314]
[1750057445596,0.00936347,106790.0,106780.0,0.54531257]
[1750057445838,0.41430643,106790.0,106780.0,0.6367744]
[1750057446287,0.42366981,106790.0,106780.0,0.64513901]
[1750057446514,0.41430591,106790.0,106780.0,0.64513892]
[1750057446952,0.42366981,106790.0,106780.0,0.56504161]
[1750057447199,0.41430591,106790.0,106780.0,0.56504161]
[1750057447418,0.41430591,106790.0,106780.0,0.57440613]
[1750057447636,0.42366981,106790.0,106780.0,0.5650417]
[1750057448367,0.42366981,106790.0,106780.0,0.5660417]
[1750057448809,0.42366981,106790.0,106780.0,0.64921193]
[1750057449693,0.43303389,106790.0,106780.0,0.63984741]
[1750057449911,0.4330338,106790.0,106780.0,0.64921193]
[1750057450130,0.42367042,106790.0,106780.0,0.63984741]
[1750057450343,0.43303459,106790.0,106780.0,0.6304828]
[1750057450563,0.03745509,106790.0,106780.0,0.64921193]
[1750057450797,0.42367042,106790.0,106780.0,0.64921193]
[1750057451475,0.42367042,106790.0,106780.0,0.63984741]
[1750057451704,0.42367042,106790.0,106780.0,0.64921193]
[1750057451930,0.43303459,106790.0,106780.0,0.6304828]
[1750057452391,0.03745509,106790.0,106780.0,0.63984732]
[1750057452621,0.42367042,106790.0,106780.0,0.6304828]
[1750057452843,0.43303459,106790.0,106780.0,0.6304828]
[1750057453063,0.42367042,106790.0,106780.0,0.63984741]
[1750057453322,0.43303459,106790.0,106780.0,0.6304828]
[1750057453552,0.03745509,106790.0,106780.0,0.63984741]
[1750057453769,0.37367042,106790.0,106780.0,0.63664732]
[1750057454005,0.40176196,106790.0,106780.0,0.63664741]
[1750057454233,0.41112586,106790.0,106780.0,0.6272828]
[1750057454446,0.4330345,106790.0,106780.0,0.6272828]
[1750057454708,0.02809162,106790.0,106780.0,0.6366475]
[1750057454921,0.42367103,106790.0,106780.0,0.6366475]
[1750057455139,0.41430695,106790.0,106780.0,0.64601202]
[1750057455359,0.41430695,106790.0,106780.0,0.6366475]
[1750057455817,0.02809162,106790.0,106780.0,0.6366475]
[1750057456037,0.02809162,106790.0,106780.0,0.64601202]
[1750057456259,0.01872763,106790.0,106780.0,0.65537645]
[1750057456479,0.01872763,106790.0,106780.0,0.64601202]
[1750057456703,0.02809171,106790.0,106780.0,0.63664758]
[1750057457420,0.02809162,106790.0,106780.0,0.64601219]
[1750057457651,0.02809162,106790.0,106780.0,0.65537671]
[1750057457872,0.41430695,106790.0,106780.0,0.64601219]
[1750057458082,0.42367112,106790.0,106780.0,0.64601219]
[1750057458725,0.41430695,106790.0,106780.0,0.64601219]
[1750057458951,0.02809162,106790.0,106780.0,0.64601219]
[1750057459174,0.41430695,106790.0,106780.0,0.64601219]
[1750057459405,0.42367112,106790.0,106780.0,0.63664758]
[1750057460274,0.42367112,106790.0,106780.0,0.62728289]
[1750057460716,0.60159084,106790.0,106780.0,0.61791811]
[1750057460996,0.60159084,106790.0,106780.0,0.54411275]
[1750057461224,0.60159084,106790.0,106780.0,0.3380827]
[1750057461452,0.58286295,106790.0,106780.0,0.3022227]
[1750057461908,0.19664762,106790.0,106780.0,0.3022227]
[1750057462131,0.58286295,106790.0,106780.0,0.3022227]
[1750057462358,0.19664762,106790.0,106780.0,0.3022227]
[1750057462587,0.58286295,106790.0,106780.0,0.20574094]
[1750057462856,0.58286295,106790.0,106780.0,0.00214094]
[1750057463067,0.19664762,106790.0,106780.0,0.20518094]
[1750057463292,0.58286295,106790.0,106780.0,0.20518094]
[1750057464665,0.58286295,106790.0,106780.0,0.2584761]
[1750057464892,0.19664762,106790.0,106780.0,0.20518094]
[1750057465113,0.58286295,106790.0,106780.0,0.20518094]
[1750057465776,0.57349878,106790.0,106780.0,0.20518094]
[1750057468645,0.91349878,106790.0,106780.0,0.20378094]
[1750057468854,0.92869878,106790.0,106780.0,0.20378094]
[1750057469379,0.92869878,106790.0,106780.0,0.00214094]
[1750057469380,0.94389878,106790.0,106780.0,0.00214094]
[1750057470815,0.94389878,106790.0,106780.0,0.00014094]
[1750057471055,0.94489878,106790.0,106780.0,0.00014094]
[1750057479018,0.55868345,106790.0,106780.0,0.00014094]
[1750057479504,0.94489878,106790.0,106780.0,0.00014094]
[1750057480745,0.54348345,106790.0,106780.0,0.00014094]
[1750057480959,0.92969878,106790.0,106780.0,0.00014094]
[1750057481998,0.54348345,106790.0,106780.0,0.00014094]
[1750057482212,0.92969878,106790.0,106780.0,0.00014094]
[1750057482636,0.94509878,106790.0,106780.0,0.00014094]
[1750057483257,0.55888345,106790.0,106780.0,0.00014094]
[1750057483469,0.94509878,106790.0,106780.0,0.00014094]
[1750057485166,0.92969878,106790.0,106780.0,0.00014094]
[1750057488066,0.54348345,106790.0,106780.0,0.00014094]
[1750057488295,0.92969878,106790.0,106780.0,0.00014094]
[1750057490403,0.94619878,106790.0,106780.0,0.00014094]
[1750057493060,0.96865103,106790.0,106780.0,0.00014094]
[1750057495226,1.09291005,106790.0,106780.0,0.00014094]
[1750057496306,1.09191005,106790.0,106780.0,0.00014094]
[1750057496716,1.09491005,106790.0,106780.0,0.00014094]
[1750057498036,1.28807005,106790.0,106780.0,0.00014094]
[1750057502089,0.90185472,106790.0,106780.0,0.00014094]
[1750057502310,1.28807005,106790.0,106780.0,0.00014094]
[1750057504059,1.26005279,106790.0,106780.0,0.00014094]
[1750057506978,1.74375976,106790.0,106780.0,0.00014094]
[1750057510945,0.87383746,106790.0,106780.0,0.00014094]
[1750057511182,1.73991976,106790.0,106780.0,0.00014094]
[1750057511877,1.73987631,106790.0,106780.0,0.00014094]
[1750057512543,1.73983631,106790.0,106780.0,0.00014094]
[1750057513848,1.73983804,106790.0,106780.0,0.00014094]
[1750057514060,1.55055804,106790.0,106780.0,0.00014094]
[1750057514329,1.73939804,106790.0,106780.0,0.00014094]
[1750057514997,1.7674112,106790.0,106780.0,0.00014094]
[1750057515462,0.86907574,106790.0,106780.0,0.00014094]
[1750057515689,1.30403689,106790.0,106780.0,0.00014094]
[1750057517062,1.33205005,106790.0,106780.0,0.00014094]
[1750057517281,1.41267542,106790.0,106780.0,0.00014094]
[1750057517501,1.33205005,106790.0,106780.0,0.00014094]
[1750057521594,1.33105005,106790.0,106780.0,0.00014094]
[1750057522047,1.33041005,106790.0,106780.0,0.00014094]
[1750057523505,1.7653712,106790.0,106780.0,0.00014094]
[1750057523745,1.33041005,106790.0,106780.0,0.00014094]
[1750057524664,1.36276093,106790.0,106780.0,0.00014094]
[1750057529600,1.34626093,106790.0,106780.0,0.00014094]
[1750057531215,1.33106093,106790.0,106780.0,0.00014094]
[1750057532522,1.14426093,106790.0,106780.0,0.00014094]
[1750057532753,1.32878093,106790.0,106780.0,0.00014094]
[1750057535273,0.89381978,106790.0,106780.0,0.00014094]
[1750057535483,1.32878093,106790.0,106780.0,0.00014094]
[1750057536562,0.89381978,106790.0,106780.0,0.00014094]
[1750057536695,1.32878093,106790.0,106780.0,0.00014094]
[1750057542642,1.328873,106790.0,106780.0,0.00014094]
[1750057547278,1.28828212,106790.0,106780.0,0.03164094]
[1750057548281,1.325633,106790.0,106780.0,0.03164094]
[1750057549409,0.89067185,106790.0,106780.0,0.03164094]
[1750057549619,1.325633,106790.0,106780.0,0.03164094]
[1750057550648,0.89067185,106790.0,106780.0,0.03164094]
[1750057550904,1.325633,106790.0,106780.0,0.03164094]
[1750057551115,0.89067185,106790.0,106780.0,0.03164094]
[1750057551324,1.325633,106790.0,106780.0,0.03164094]
[1750057551543,1.144353,106790.0,106780.0,0.03164094]
[1750057551751,0.984713,106790.0,106780.0,0.03164094]
[1750057552402,1.324713,106790.0,106780.0,0.03164094]
[1750057555222,0.984713,106790.0,106780.0,0.03164094]
[1750057555875,1.324713,106790.0,106780.0,0.03164094]
[1750057560642,0.75475921,106790.0,106780.0,0.03164094]
[1750057560866,1.18972036,106790.0,106780.0,0.03164094]
[1750057561080,0.57579921,106790.0,106780.0,0.03164094]
[1750057561302,0.98269605,106790.0,106780.0,0.03164094]
[1750057564348,0.5477349,106790.0,106780.0,0.03164094]
[1750057564570,0.98269605,106790.0,106780.0,0.03164094]
[1750057565467,0.9602446,106790.0,106780.0,0.03164094]
[1750057565907,0.52528345,106790.0,106780.0,0.03164094]
[1750057566142,0.9602446,106790.0,106780.0,0.03164094]
[1750057566366,0.52528345,106790.0,106780.0,0.03164094]
[1750057566634,0.35236408,106790.0,106780.0,0.2283068]
[1750057566896,0.80605287,106790.0,106780.0,0.24703627]
[1750057567108,0.82478015,106790.0,106780.0,0.24703627]
[1750057567550,0.81541668,106790.0,106780.0,0.2283068]
[1750057567773,0.80605295,106790.0,106780.0,0.22830689]
[1750057568221,0.9933364,106790.0,106780.0,0.05037094]
[1750057568669,0.9933364,106790.0,106780.0,0.05973581]
[1750057568886,0.9933364,106790.0,106780.0,0.05037094]
[1750057569118,0.55837525,106790.0,106780.0,0.04100598]
[1750057569345,0.9933364,106790.0,106780.0,0.03087994]
[1750057570078,0.98397258,106790.0,106780.0,0.03087994]
[1750057570300,0.98397258,106790.0,106780.0,0.04024498]
[1750057570729,0.98397258,106790.0,106780.0,0.04960994]
[1750057570937,0.98397258,106790.0,106780.0,0.03087994]
[1750057571924,0.97460868,106790.0,106780.0,0.03087994]
[1750057572910,0.9652446,106790.0,106780.0,0.03087994]
[1750057574003,0.9652446,106790.0,106780.0,0.03061709]
[1750057579882,0.9652446,106790.0,106780.0,0.03998213]
[1750057580103,0.9652446,106790.0,106780.0,0.03061709]
[1750057580315,0.9652446,106790.0,106780.0,0.03998213]
[1750057580736,0.9652446,106790.0,106780.0,0.03061709]
[1750057580975,0.9652446,106790.0,106780.0,0.03998213]
[1750057581629,0.53028345,106790.0,106780.0,0.03998213]
[1750057581856,0.9652446,106790.0,106780.0,0.03061709]
[1750057582074,0.9652446,106790.0,106780.0,0.03998213]
[1750057582566,0.9652446,106790.0,106780.0,0.03061709]
[1750057584239,0.97460859,106790.0,106780.0,0.03061709]
[1750057588291,0.53964744,106790.0,106780.0,0.03061709]
[1750057588501,0.97460859,106790.0,106780.0,0.03061709]
[1750057590717,0.53028345,106790.0,106780.0,0.03061709]
[1750057590918,0.9652446,106790.0,106780.0,0.03061709]
[1750057593020,0.53028345,106790.0,106780.0,0.03061709]
[1750057593233,0.9652446,106790.0,106780.0,0.03061709]
[1750057594681,0.53028345,106790.0,106780.0,0.03061709]
[1750057594890,0.9652446,106790.0,106780.0,0.03061709]
[1750057596054,0.53028345,106790.0,106780.0,0.03061709]
[1750057596300,0.9652446,106790.0,106780.0,0.03061709]
[1750057596727,0.53028345,106790.0,106780.0,0.03061709]
[1750057596973,0.9652446,106790.0,106780.0,0.03061709]
[1750057603690,0.20606854,106760.0,106750.0,0.3295]
[1750057603919,0.63166377,106760.0,106750.0,0.12694176]
[1750057604162,0.63166377,106760.0,106750.0,0.17858887]
[1750057604626,0.63166377,106760.0,106750.0,0.12698887]
[1750057605339,0.63166377,106760.0,106750.0,0.13635655]
[1750057606017,0.45369396,106760.0,106750.0,0.41333573]
[1750057606260,0.02821156,106760.0,106750.0,0.47430279]
[1750057606464,0.0282113,106760.0,106750.0,0.47030288]
[1750057606683,0.04694393,106760.0,106750.0,0.4649352]
[1750057606904,0.05631047,106760.0,106750.0,0.47430226]
[1750057607095,0.05631047,106760.0,106750.0,0.41777903]
[1750057607498,0.05631047,106760.0,106750.0,0.40841197]
[1750057607708,0.04694384,106760.0,106750.0,0.41777903]
[1750057607926,0.05631038,106760.0,106750.0,0.40841197]
[1750057608138,0.49127223,106760.0,106750.0,0.39904482]
[1750057608359,0.48190552,106760.0,106750.0,0.39904482]
[1750057608798,0.49127223,106760.0,106750.0,0.38967758]
[1750057609037,0.49127223,106760.0,106750.0,0.39904499]
[1750057609244,0.48190552,106760.0,106750.0,0.38967758]
[1750057609457,0.49127223,106760.0,106750.0,0.38031008]
[1750057609688,0.47253898,106760.0,106750.0,0.38967758]
[1750057609916,0.4819056,106760.0,106750.0,0.38967758]
[1750057610152,0.4912724,106760.0,106750.0,0.40841232]
[1750057610395,0.04694445,106760.0,106750.0,0.40841232]
[1750057610629,0.05631125,106760.0,106750.0,0.40841232]
[1750057610856,0.04694445,106760.0,106750.0,0.41777956]
[1750057611087,0.4819056,106760.0,106750.0,0.41777956]
[1750057611526,0.49127231,106760.0,106750.0,0.40841232]
[1750057611755,0.49127231,106760.0,106750.0,0.41777956]
[1750057612242,0.49127231,106760.0,106750.0,0.40841232]
[1750057612715,0.49127231,106760.0,106750.0,0.41777956]
[1750057613217,0.49127231,106760.0,106750.0,0.40841232]
[1750057614681,0.49127231,106760.0,106750.0,0.41777956]
[1750057615426,0.49127231,106760.0,106750.0,0.40841232]
[1750057615807,0.49127231,106760.0,106750.0,0.41777956]
[1750057616024,0.4819056,106760.0,106750.0,0.40841197]
[1750057616242,0.04694445,106760.0,106750.0,0.41777912]
[1750057616457,0.48190552,106760.0,106750.0,0.5139279]
[1750057616670,0.48190552,106760.0,106750.0,0.50456084]
[1750057616889,0.04694437,106760.0,106750.0,0.50456084]
[1750057617156,0.48190552,106760.0,106750.0,0.50456084]
[1750057617364,0.48190552,106760.0,106750.0,0.49519369]
[1750057617569,0.49127214,106760.0,106750.0,0.49519369]
[1750057617986,0.03757783,106760.0,106750.0,0.49519369]
[1750057618192,0.04694437,106760.0,106750.0,0.50456084]
[1750057618404,0.05631108,106760.0,106750.0,0.39904447]
[1750057618643,0.48190552,106760.0,106750.0,0.40841162]
[1750057619223,0.03757783,106760.0,106750.0,0.41777868]
[1750057619466,0.47253898,106760.0,106750.0,0.41777868]
[1750057619684,0.00947919,106760.0,106750.0,0.85273983]
[1750057619910,0.00947919,106760.0,106750.0,0.94888905]
[1750057620137,0.81242361,106770.0,106760.0,0.2225695]
[1750057620365,0.80305752,106770.0,106760.0,0.52450407]
[1750057620727,0.80305752,106770.0,106760.0,0.53387025]
[1750057620728,0.34,106770.0,106760.0,0.53387025]
[1750057620816,0.35873053,106770.0,106760.0,0.9688314]
[1750057621047,0.34936522,106770.0,106760.0,0.63001947]
[1750057621274,0.34936522,106770.0,106760.0,1.06498062]
[1750057621497,0.3588784,106770.0,106760.0,1.06498062]
[1750057621725,0.3588784,106770.0,106760.0,0.63201947]
[1750057624206,0.80320503,106770.0,106760.0,0.53587025]
[1750057624431,0.80320495,106770.0,106760.0,0.53587025]
[1750057625409,0.82193618,106770.0,106760.0,0.52650407]
[1750057625636,0.81257043,106770.0,106760.0,0.52650407]
[1750057626085,0.821936,106770.0,106760.0,0.53587025]
[1750057626592,0.81257043,106770.0,106760.0,0.53587025]
[1750057626812,0.82193609,106770.0,106760.0,0.61625075]
[1750057627110,0.81257043,106770.0,106760.0,0.61625075]
[1750057627793,0.81257043,106770.0,106760.0,0.53587025]
[1750057628134,0.82193609,106770.0,106760.0,0.53587025]
[1750057628377,0.81257043,106770.0,106760.0,0.53587025]
[1750057628600,0.82193609,106770.0,106760.0,0.53587025]
[1750057628824,0.81257043,106770.0,106760.0,0.52650407]
[1750057629274,0.81257043,106770.0,106760.0,0.53587025]
[1750057629501,0.80320495,106770.0,106760.0,0.53587025]
[1750057629821,0.79383955,106770.0,106760.0,0.53587025]
[1750057630747,0.79383946,106770.0,106760.0,0.63201947]
[1750057631508,0.80320468,106770.0,106760.0,0.63201947]
[1750057632215,0.79383946,106770.0,106760.0,0.63201947]
[1750057632461,0.80320477,106770.0,106760.0,0.63201947]
[1750057633157,0.80320477,106770.0,106760.0,0.53587025]
[1750057633416,0.81257034,106770.0,106760.0,0.53587025]
[1750057634103,0.36824362,106770.0,106760.0,0.53587025]
[1750057634328,0.81257025,106770.0,106760.0,0.53587025]
[1750057634565,0.82193582,106770.0,106760.0,0.53587025]
[1750057635056,0.81257025,106770.0,106760.0,0.53587025]
[1750057635507,0.3776091,106770.0,106760.0,0.53587025]
[1750057636013,0.81257025,106770.0,106760.0,0.53587025]
[1750057636249,0.82193582,106770.0,106760.0,0.54773129]
[1750057636469,0.82193582,106770.0,106760.0,0.53587025]
[1750057636696,0.82193582,106770.0,106760.0,0.52650407]
[1750057636916,0.83130157,106770.0,106760.0,0.5171378]
[1750057637143,0.83130157,106770.0,106760.0,0.52650416]
[1750057637395,0.82193582,106770.0,106760.0,0.53587043]
[1750057637842,0.83130157,106770.0,106760.0,0.53587043]
[1750057638066,0.82193582,106770.0,106760.0,0.53586981]
[1750057638885,0.83130157,106770.0,106760.0,0.52650363]
[1750057639338,0.83130157,106770.0,106760.0,0.51713736]
[1750057639649,0.38697467,106770.0,106760.0,0.52650363]
[1750057639875,0.83130148,106770.0,106760.0,0.52650363]
[1750057640711,0.82193582,106770.0,106760.0,0.53586981]
[1750057640930,0.38697467,106770.0,106760.0,0.53586981]
[1750057641152,0.82193582,106770.0,106760.0,0.63201903]
[1750057641921,0.83130157,106770.0,106760.0,0.62265285]
[1750057642155,0.83130157,106770.0,106760.0,0.52650363]
[1750057642873,0.83130157,106770.0,106760.0,0.51713736]
[1750057643089,0.83130157,106770.0,106760.0,0.52650363]
[1750057643301,0.83130157,106770.0,106760.0,0.51713736]
[1750057644211,0.83130236,106770.0,106760.0,0.51713745]
[1750057644640,0.82193705,106770.0,106760.0,0.49840446]
[1750057644863,0.82193705,106770.0,106760.0,0.507771]
[1750057645099,0.3869759,106770.0,106760.0,0.32744446]
[1750057645323,0.82193705,106770.0,106760.0,0.48451745]
[1750057645758,0.82193705,106770.0,106760.0,0.475151]
[1750057645977,0.82193705,106770.0,106760.0,0.48451745]
[1750057646260,0.81257113,106770.0,106760.0,0.48451745]
[1750057646490,0.82193705,106770.0,106760.0,0.475151]
[1750057647234,0.37760998,106770.0,106760.0,0.49388381]
[1750057647470,0.81257113,106770.0,106760.0,0.49388381]
[1750057647662,0.82193705,106770.0,106760.0,0.48451745]
[1750057648090,1.00925558,106770.0,106760.0,0.47515117]
[1750057648311,0.82193696,106770.0,106760.0,0.53495762]
[1750057648773,0.82193696,106770.0,106760.0,0.54432398]
[1750057649006,0.81257113,106770.0,106760.0,0.54432389]
[1750057649249,0.81257113,106770.0,106760.0,0.54432398]
[1750057649655,0.82193705,106770.0,106760.0,0.53495762]
[1750057649886,0.81257113,106770.0,106760.0,0.54432398]
[1750057650446,0.82193705,106770.0,106760.0,0.53495762]
[1750057650773,0.82193705,106770.0,106760.0,0.56675762]
[1750057651199,0.81257113,106770.0,106760.0,0.56675762]
[1750057651434,0.38697581,106770.0,106760.0,0.56475762]
[1750057651649,0.80320538,106770.0,106760.0,0.56475762]
[1750057651861,0.81257113,106770.0,106760.0,0.56475762]
[1750057652107,0.81257113,106770.0,106760.0,0.57412398]
[1750057652777,0.82193696,106770.0,106760.0,0.56675762]
[1750057653016,0.82193696,106770.0,106760.0,0.55839117]
[1750057653453,0.82193696,106770.0,106760.0,0.56775771]
[1750057653679,0.81257113,106770.0,106760.0,0.58649043]
[1750057653900,0.81257113,106770.0,106760.0,0.56575771]
[1750057654108,0.81257113,106770.0,106760.0,0.55939117]
[1750057654324,0.82193705,106770.0,106760.0,0.55939117]
[1750057654947,0.3869759,106770.0,106760.0,0.55939117]
[1750057655205,0.34,106770.0,106760.0,1.10735809]
[1750057655424,0.34,106770.0,106760.0,1.11672427]
[1750057656077,0.0187286,106780.0,106770.0,0.21541524]
[1750057656317,0.3587286,106780.0,106770.0,0.77931815]
[1750057656538,0.37753658,106780.0,106770.0,0.77931815]
[1750057657196,0.34936426,106780.0,106770.0,0.87546737]
[1750057657419,0.35872869,106780.0,106770.0,0.87746737]
[1750057657889,0.35872869,106780.0,106770.0,0.346357]
[1750057658124,0.35872869,106780.0,106770.0,0.78131815]
[1750057658336,0.3680933,106780.0,106770.0,0.346357]
[1750057658554,0.35872869,106780.0,106770.0,0.346357]
[1750057659062,0.34,106780.0,106770.0,0.346357]
[1750057659502,0.34936726,106780.0,106770.0,0.346357]
[1750057660594,0.34936726,106780.0,106770.0,0.344357]
[1750057660810,0.34936726,106780.0,106770.0,0.347357]
[1750057661492,0.34936726,106780.0,106770.0,0.348357]
[1750057661936,0.34,106780.0,106770.0,0.348357]
[1750057663461,0.34,106780.0,106770.0,0.36188998]
[1750057663683,0.34,106780.0,106770.0,0.79685113]
[1750057664346,0.05,106800.0,106790.0,0.19664744]
[1750057664589,0.84349645,106800.0,106790.0,0.37669134]
[1750057665122,0.83413377,106800.0,106790.0,0.49166056]
[1750057665444,0.84349636,106800.0,106790.0,0.50776065]
[1750057665662,0.84349636,106800.0,106790.0,0.5171714]
[1750057665916,0.84349636,106800.0,106790.0,0.5020714]
[1750057666175,0.84349636,106800.0,106790.0,0.49270776]
[1750057666722,0.84349636,106800.0,106790.0,0.48334403]
[1750057666926,0.84349636,106800.0,106790.0,0.49270776]
[1750057667143,0.84349636,106800.0,106790.0,0.48334403]
[1750057667356,0.85285904,106800.0,106790.0,0.56708206]
[1750057667808,0.85285904,106800.0,106790.0,0.49270776]
[1750057668045,0.84349636,106800.0,106790.0,0.49270776]
[1750057668263,0.85285904,106800.0,106790.0,0.49270776]
[1750057668706,0.83413377,106800.0,106790.0,0.49270776]
[1750057668917,0.84349636,106800.0,106790.0,0.5020714]
[1750057669155,0.84349636,106800.0,106790.0,0.49270776]
[1750057669918,0.84349636,106800.0,106790.0,0.48334403]
[1750057670344,0.84349636,106800.0,106790.0,0.49270776]
[1750057670568,0.84349636,106800.0,106790.0,0.49170776]
[1750057670782,0.83413377,106800.0,106790.0,0.5010714]
[1750057670993,0.83413377,106800.0,106790.0,0.50107096]
[1750057671213,0.83413377,106800.0,106790.0,0.49470741]
[1750057671554,0.83413377,106800.0,106790.0,0.50407096]
[1750057671828,0.84349636,106800.0,106790.0,0.48534377]
[1750057672054,0.39917262,106800.0,106790.0,0.64213654]
[1750057672275,0.05917262,106800.0,106790.0,1.01294847]
[1750057672923,0.05917262,106800.0,106790.0,0.57798732]
[1750057674744,0.05917262,106800.0,106790.0,0.57698732]
[1750057674956,0.05917262,106800.0,106790.0,0.57798732]
[1750057675176,0.05917262,106800.0,106790.0,0.67413654]
[1750057675608,0.05917262,106800.0,106790.0,0.67013654]
[1750057675830,0.05917262,106800.0,106790.0,0.67513654]
[1750057676047,0.05917262,106800.0,106790.0,0.67713654]
[1750057679573,0.83413377,106800.0,106790.0,0.67213654]
[1750057680017,0.83413377,106800.0,106790.0,0.67713654]
[1750057680277,0.83413377,106800.0,106790.0,0.67513654]
[1750057680499,0.39917262,106800.0,106790.0,0.67513654]
[1750057680773,0.39917262,106800.0,106790.0,0.67713654]
[1750057681219,0.39917262,106800.0,106790.0,0.67013654]
[1750057681427,0.39917262,106800.0,106790.0,0.67713654]
[1750057684908,0.39917262,106800.0,106790.0,1.11209769]
[1750057685351,0.39917262,106800.0,106790.0,0.67713654]
[1750057687041,0.05,106800.0,106790.0,1.01594847]
[1750057687482,0.05,106800.0,106790.0,1.31474847]
[1750057689937,0.05,106800.0,106790.0,1.09378847]
[1750057691861,0.05,106800.0,106790.0,1.31422847]
[1750057693692,0.05,106800.0,106790.0,1.32876932]
[1750057693913,0.05,106800.0,106790.0,1.42491854]
[1750057695179,0.05,106800.0,106790.0,0.98995739]
[1750057695390,0.05,106800.0,106790.0,1.42491854]
[1750057696606,0.05,106800.0,106790.0,0.98995739]
[1750057696825,0.05,106800.0,106790.0,1.42491854]
[1750057701680,0.05,106800.0,106790.0,1.20447854]
[1750057701897,0.05,106800.0,106790.0,1.41021769]
[1750057702115,0.05,106800.0,106790.0,1.31406847]
[1750057707601,0.05,106800.0,106790.0,0.87910732]
[1750057707821,0.05,106800.0,106790.0,1.31406847]
[1750057708721,0.05,106800.0,106790.0,0.59873649]
[1750057708960,0.51666115,106800.0,106790.0,0.84702794]
[1750057709188,0.0658,106800.0,106790.0,0.64437716]
[1750057709404,0.05,106800.0,106790.0,1.07933831]
[1750057710349,0.05,106800.0,106790.0,1.07929831]
[1750057710800,0.05,106800.0,106790.0,1.11199831]
[1750057712014,0.05,106800.0,106790.0,1.12653916]
[1750057712506,0.03476799,106800.0,106790.0,1.12653916]
[1750057713005,0.03476799,106800.0,106790.0,2.06256325]
[1750057713279,0.03476799,106800.0,106790.0,1.67647063]
[1750057714028,0.03476799,106800.0,106790.0,1.67447063]
[1750057714272,0.02378451,106800.0,106790.0,1.66947063]
[1750057714788,0.02378451,106800.0,106790.0,1.67647063]
[1750057715500,0.02378451,106800.0,106790.0,2.06256325]
[1750057715733,0.02378451,106800.0,106790.0,1.67647063]
[1750057715949,0.02378451,106800.0,106790.0,1.67847063]
[1750057716433,0.02378451,106800.0,106790.0,1.67647063]
[1750057716919,0.02378451,106800.0,106790.0,1.68047063]
[1750057719435,0.01253804,106800.0,106790.0,1.70047063]
[1750057719663,0.37985562,106840.0,106830.0,0.21529425]
[1750057719885,0.3707,106840.0,106830.0,0.5736992]
[1750057720118,0.0307,106840.0,106830.0,0.95979182]
[1750057720342,0.0152,106840.0,106830.0,0.5736992]
[1750057720575,0.0152,106840.0,106830.0,0.3536592]
[1750057720802,0.039659,106840.0,106830.0,0.53129601]
[1750057720994,0.0303,106840.0,106830.0,0.53134312]
[1750057721558,0.03965917,106840.0,106830.0,0.53134312]
[1750057721767,0.0303,106840.0,106830.0,0.53134312]
[1750057721979,0.03965917,106840.0,106830.0,0.53134312]
[1750057722185,0.00935917,106840.0,106830.0,0.61443116]
[1750057722394,0.57879648,106850.0,106840.0,0.20591493]
[1750057722625,0.40073822,106850.0,106840.0,0.48143612]
[1750057722864,0.80554796,106850.0,106840.0,0.48143612]
[1750057723098,0.79618914,106850.0,106840.0,0.49079547]
[1750057723311,0.79618914,106850.0,106840.0,0.50015473]
[1750057723715,0.80554796,106850.0,106840.0,0.47207669]
[1750057723933,0.80554796,106850.0,106840.0,0.27552155]
[1750057724136,0.80554796,106850.0,106840.0,0.28488125]
[1750057724355,0.80554796,106850.0,106840.0,0.29424086]
[1750057724544,0.80554796,106850.0,106840.0,0.48143666]